[Event "Live Chess"]
[Site "Chess.com"]
[Date "2011.02.01"]
[Round "-"]
[White "HockeyMaster"]
[Black "hipposcottimus"]
[Result "0-1"]
[CurrentPosition "1r4k1/6p1/4prq1/pn1p4/3P2Q1/P1p1P2P/8/R1B1R1K1 w - -"]
[Timezone "UTC"]
[ECO "D10"]
[ECOUrl "https://www.chess.com/openings/Slav-Defense-Exchange-Variation-3...cxd5-4.Nc3"]
[UTCDate "2011.02.01"]
[UTCTime "02:20:59"]
[WhiteElo "1454"]
[BlackElo "1647"]
[TimeControl "60"]
[Termination "hipposcottimus won on time"]
[StartTime "02:20:59"]
[EndDate "2011.02.01"]
[EndTime "02:22:45"]
[Link "https://www.chess.com/game/live/93495546"]

1. d4 {[%clk 0:01:00]} 1... d5 {[%clk 0:01:00]} 2. c4 {[%clk 0:00:59.2]} 2... c6 {[%clk 0:00:59.8]} 3. cxd5 {[%clk 0:00:58]} 3... cxd5 {[%clk 0:00:58.9]} 4. Nc3 {[%clk 0:00:57.9]} 4... e6 {[%clk 0:00:57.3]} 5. Nf3 {[%clk 0:00:57.5]} 5... Nf6 {[%clk 0:00:57]} 6. e3 {[%clk 0:00:57.3]} 6... Nbd7 {[%clk 0:00:56.4]} 7. Bb5 {[%clk 0:00:55]} 7... Bb4 {[%clk 0:00:56]} 8. a3 {[%clk 0:00:53.4]} 8... Bxc3+ {[%clk 0:00:52.5]} 9. bxc3 {[%clk 0:00:53.3]} 9... O-O {[%clk 0:00:51.2]} 10. Bxd7 {[%clk 0:00:53.1]} 10... Bxd7 {[%clk 0:00:50.7]} 11. O-O {[%clk 0:00:52.4]} 11... Bb5 {[%clk 0:00:50.3]} 12. Re1 {[%clk 0:00:50.1]} 12... Bc4 {[%clk 0:00:49.5]} 13. Qa4 {[%clk 0:00:47.7]} 13... Ne4 {[%clk 0:00:48.8]} 14. Nd2 {[%clk 0:00:45.3]} 14... b5 {[%clk 0:00:48.1]} 15. Qb4 {[%clk 0:00:41.3]} 15... a5 {[%clk 0:00:46.1]} 16. Qb1 {[%clk 0:00:38.9]} 16... Nxc3 {[%clk 0:00:44.6]} 17. Qb2 {[%clk 0:00:35.3]} 17... Ne4 {[%clk 0:00:44]} 18. Nxc4 {[%clk 0:00:34.1]} 18... bxc4 {[%clk 0:00:41.7]} 19. f3 {[%clk 0:00:32]} 19... Rb8 {[%clk 0:00:41.2]} 20. Qe2 {[%clk 0:00:24.6]} 20... Nc3 {[%clk 0:00:39.9]} 21. Qd2 {[%clk 0:00:22.6]} 21... Nb5 {[%clk 0:00:39.6]} 22. Qe2 {[%clk 0:00:17.4]} 22... Qg5 {[%clk 0:00:36.3]} 23. Bd2 {[%clk 0:00:14.9]} 23... Qg6 {[%clk 0:00:35.9]} 24. g4 {[%clk 0:00:13.4]} 24... c3 {[%clk 0:00:35.2]} 25. Bc1 {[%clk 0:00:10.5]} 25... f5 {[%clk 0:00:33.4]} 26. h3 {[%clk 0:00:05.5]} 26... fxg4 {[%clk 0:00:32.5]} 27. fxg4 {[%clk 0:00:05.3]} 27... h5 {[%clk 0:00:31.9]} 28. Qf3 {[%clk 0:00:02.7]} 28... hxg4 {[%clk 0:00:30.8]} 29. Qxg4 {[%clk 0:00:01.1]} 29... Rf6 {[%clk 0:00:27.9]} 0-1

[Event "Live Chess"]
[Site "Chess.com"]
[Date "2011.02.01"]
[Round "-"]
[White "Yash007"]
[Black "hipposcottimus"]
[Result "0-1"]
[CurrentPosition "8/pp3k2/6p1/6P1/3n2R1/2r5/5PK1/8 w - -"]
[Timezone "UTC"]
[ECO "A00"]
[ECOUrl "https://www.chess.com/openings/Vant-Kruijs-Opening-1...e5"]
[UTCDate "2011.02.01"]
[UTCTime "02:18:23"]
[WhiteElo "1352"]
[BlackElo "1643"]
[TimeControl "60"]
[Termination "hipposcottimus won on time"]
[StartTime "02:18:23"]
[EndDate "2011.02.01"]
[EndTime "02:20:31"]
[Link "https://www.chess.com/game/live/93494918"]

1. e3 {[%clk 0:01:00]} 1... e5 {[%clk 0:01:00]} 2. d3 {[%clk 0:00:59.3]} 2... d5 {[%clk 0:00:58.6]} 3. h3 {[%clk 0:00:58.7]} 3... Nc6 {[%clk 0:00:57.9]} 4. a3 {[%clk 0:00:57.4]} 4... f5 {[%clk 0:00:57.6]} 5. c3 {[%clk 0:00:56.3]} 5... Nf6 {[%clk 0:00:57.4]} 6. g4 {[%clk 0:00:54.8]} 6... d4 {[%clk 0:00:57.1]} 7. gxf5 {[%clk 0:00:53.4]} 7... Bxf5 {[%clk 0:00:55.3]} 8. cxd4 {[%clk 0:00:51.8]} 8... exd4 {[%clk 0:00:54.4]} 9. exd4 {[%clk 0:00:50.7]} 9... Qxd4 {[%clk 0:00:54.2]} 10. Qe2+ {[%clk 0:00:49.4]} 10... Be7 {[%clk 0:00:53.9]} 11. Nf3 {[%clk 0:00:47.3]} 11... Qxd3 {[%clk 0:00:50.1]} 12. Qxd3 {[%clk 0:00:45.6]} 12... Bxd3 {[%clk 0:00:49.8]} 13. Bxd3 {[%clk 0:00:44.5]} 13... O-O {[%clk 0:00:48.6]} 14. O-O {[%clk 0:00:43.3]} 14... Nh5 {[%clk 0:00:46]} 15. h4 {[%clk 0:00:40.8]} 15... Rxf3 {[%clk 0:00:43.9]} 16. Bg5 {[%clk 0:00:38]} 16... Bxg5 {[%clk 0:00:40.5]} 17. Bxh7+ {[%clk 0:00:34.3]} 17... Kxh7 {[%clk 0:00:38.8]} 18. hxg5 {[%clk 0:00:33.6]} 18... Rb3 {[%clk 0:00:37.2]} 19. Nc3 {[%clk 0:00:32.5]} 19... Rxb2 {[%clk 0:00:36.3]} 20. Rae1 {[%clk 0:00:32]} 20... Rb3 {[%clk 0:00:34.6]} 21. Re3 {[%clk 0:00:30.8]} 21... Rxa3 {[%clk 0:00:33.1]} 22. Rfe1 {[%clk 0:00:28.8]} 22... Rg8 {[%clk 0:00:29.6]} 23. Nd5 {[%clk 0:00:27.3]} 23... Rxe3 {[%clk 0:00:27.6]} 24. Rxe3 {[%clk 0:00:27]} 24... Nd4 {[%clk 0:00:25.1]} 25. Nxc7 {[%clk 0:00:25.5]} 25... Nf5 {[%clk 0:00:22.9]} 26. Re2 {[%clk 0:00:24.2]} 26... Rc8 {[%clk 0:00:22]} 27. Ne6 {[%clk 0:00:22.1]} 27... Rc1+ {[%clk 0:00:21.7]} 28. Kg2 {[%clk 0:00:20.7]} 28... Nf4+ {[%clk 0:00:20.2]} 29. Nxf4 {[%clk 0:00:19.1]} 29... g6 {[%clk 0:00:19.8]} 30. Ne6 {[%clk 0:00:17.3]} 30... Kg8 {[%clk 0:00:17.9]} 31. Nf4 {[%clk 0:00:14.6]} 31... Kf7 {[%clk 0:00:17.4]} 32. Re3 {[%clk 0:00:12.6]} 32... Rc4 {[%clk 0:00:16.7]} 33. Rf3 {[%clk 0:00:11.1]} 33... Re4 {[%clk 0:00:15.8]} 34. Kh3 {[%clk 0:00:08.8]} 34... Nd4 {[%clk 0:00:12.9]} 35. Rg3 {[%clk 0:00:06.5]} 35... Rxf4 {[%clk 0:00:12.4]} 36. Rg4 {[%clk 0:00:04.1]} 36... Rf3+ {[%clk 0:00:12.1]} 37. Kg2 {[%clk 0:00:00.8]} 37... Rc3 {[%clk 0:00:10.3]} 0-1

[Event "Live Chess"]
[Site "Chess.com"]
[Date "2011.02.01"]
[Round "-"]
[White "hipposcottimus"]
[Black "Yash007"]
[Result "0-1"]
[CurrentPosition "4r1k1/7p/p1p3p1/5p2/PPR5/5PPN/3p2P1/3B2K1 w - -"]
[Timezone "UTC"]
[ECO "C41"]
[ECOUrl "https://www.chess.com/openings/Philidor-Defense-3.Bc4"]
[UTCDate "2011.02.01"]
[UTCTime "02:15:59"]
[WhiteElo "1640"]
[BlackElo "1355"]
[TimeControl "60"]
[Termination "Yash007 won on time"]
[StartTime "02:15:59"]
[EndDate "2011.02.01"]
[EndTime "02:18:07"]
[Link "https://www.chess.com/game/live/93494331"]

1. e4 {[%clk 0:01:00]} 1... e5 {[%clk 0:01:00]} 2. Nf3 {[%clk 0:00:59.6]} 2... d6 {[%clk 0:00:59.5]} 3. Bc4 {[%clk 0:00:59.2]} 3... c5 {[%clk 0:00:58.4]} 4. d4 {[%clk 0:00:58.9]} 4... exd4 {[%clk 0:00:56.2]} 5. c3 {[%clk 0:00:58.6]} 5... dxc3 {[%clk 0:00:54.4]} 6. Nxc3 {[%clk 0:00:58.3]} 6... Bd7 {[%clk 0:00:52.2]} 7. O-O {[%clk 0:00:57.7]} 7... Nc6 {[%clk 0:00:50.9]} 8. Nd5 {[%clk 0:00:56.8]} 8... Be6 {[%clk 0:00:48.5]} 9. Re1 {[%clk 0:00:54.9]} 9... a6 {[%clk 0:00:45.1]} 10. a4 {[%clk 0:00:53.1]} 10... Be7 {[%clk 0:00:41.2]} 11. Bf4 {[%clk 0:00:45.4]} 11... Bxd5 {[%clk 0:00:38.2]} 12. exd5 {[%clk 0:00:44.4]} 12... Nf6 {[%clk 0:00:36.3]} 13. dxc6 {[%clk 0:00:42.8]} 13... bxc6 {[%clk 0:00:34.6]} 14. Qb3 {[%clk 0:00:40.9]} 14... O-O {[%clk 0:00:32.9]} 15. Ng5 {[%clk 0:00:39]} 15... d5 {[%clk 0:00:31.4]} 16. Qe3 {[%clk 0:00:32]} 16... Ng4 {[%clk 0:00:25.2]} 17. Qxe7 {[%clk 0:00:28.5]} 17... Qxe7 {[%clk 0:00:24.6]} 18. Rxe7 {[%clk 0:00:26.3]} 18... Rae8 {[%clk 0:00:22.7]} 19. Rxe8 {[%clk 0:00:20.6]} 19... Rxe8 {[%clk 0:00:21.9]} 20. Bd3 {[%clk 0:00:19.2]} 20... c4 {[%clk 0:00:20.4]} 21. Bc2 {[%clk 0:00:18.2]} 21... g6 {[%clk 0:00:18.5]} 22. f3 {[%clk 0:00:17.1]} 22... Nf6 {[%clk 0:00:16.6]} 23. Bg3 {[%clk 0:00:15]} 23... d4 {[%clk 0:00:13.2]} 24. Nh3 {[%clk 0:00:14.6]} 24... d3 {[%clk 0:00:12]} 25. Bd1 {[%clk 0:00:14.3]} 25... d2 {[%clk 0:00:09.9]} 26. Ra2 {[%clk 0:00:12.8]} 26... Nh5 {[%clk 0:00:08.2]} 27. b4 {[%clk 0:00:10.6]} 27... Nxg3 {[%clk 0:00:07.2]} 28. hxg3 {[%clk 0:00:08.9]} 28... Rd8 {[%clk 0:00:05.5]} 29. Rc2 {[%clk 0:00:07.2]} 29... f5 {[%clk 0:00:04.4]} 30. Rxc4 {[%clk 0:00:06.1]} 30... Re8 {[%clk 0:00:01.3]} 0-1

[Event "Live Chess"]
[Site "Chess.com"]
[Date "2011.02.01"]
[Round "-"]
[White "potomonto"]
[Black "hipposcottimus"]
[Result "0-1"]
[CurrentPosition "r5rk/pn4Rp/8/1p6/8/2PP1pP1/PP3Pq1/6K1 w - -"]
[Timezone "UTC"]
[ECO "C23"]
[ECOUrl "https://www.chess.com/openings/Bishops-Opening-2...Nc6"]
[UTCDate "2011.02.01"]
[UTCTime "02:13:23"]
[WhiteElo "1467"]
[BlackElo "1653"]
[TimeControl "60"]
[Termination "hipposcottimus won by checkmate"]
[StartTime "02:13:23"]
[EndDate "2011.02.01"]
[EndTime "02:15:29"]
[Link "https://www.chess.com/game/live/93493745"]

1. e4 {[%clk 0:01:00]} 1... e5 {[%clk 0:01:00]} 2. Bc4 {[%clk 0:00:59.5]} 2... Nc6 {[%clk 0:00:59.1]} 3. Bxf7+ {[%clk 0:00:59]} 3... Kxf7 {[%clk 0:00:57]} 4. d3 {[%clk 0:00:58.8]} 4... Nf6 {[%clk 0:00:54.6]} 5. c3 {[%clk 0:00:58.5]} 5... Be7 {[%clk 0:00:54.2]} 6. Nf3 {[%clk 0:00:58]} 6... Rf8 {[%clk 0:00:53.2]} 7. O-O {[%clk 0:00:56.9]} 7... Kg8 {[%clk 0:00:52.7]} 8. Nbd2 {[%clk 0:00:56.3]} 8... d5 {[%clk 0:00:50.9]} 9. Ng5 {[%clk 0:00:52.7]} 9... dxe4 {[%clk 0:00:47.8]} 10. Qb3+ {[%clk 0:00:51.8]} 10... Nd5 {[%clk 0:00:40.7]} 11. Ndxe4 {[%clk 0:00:49.6]} 11... Na5 {[%clk 0:00:36.7]} 12. Qb5 {[%clk 0:00:43.6]} 12... c6 {[%clk 0:00:34.4]} 13. Qa4 {[%clk 0:00:37.5]} 13... b5 {[%clk 0:00:28.9]} 14. Qd1 {[%clk 0:00:35.1]} 14... Nf4 {[%clk 0:00:22.7]} 15. Bxf4 {[%clk 0:00:32.6]} 15... exf4 {[%clk 0:00:22.4]} 16. Qf3 {[%clk 0:00:27.8]} 16... Bxg5 {[%clk 0:00:20.9]} 17. Nxg5 {[%clk 0:00:26.1]} 17... Qxg5 {[%clk 0:00:20.6]} 18. h3 {[%clk 0:00:24.1]} 18... Nb7 {[%clk 0:00:19.1]} 19. Qxc6 {[%clk 0:00:22.8]} 19... f3 {[%clk 0:00:14.8]} 20. g3 {[%clk 0:00:20.8]} 20... Bxh3 {[%clk 0:00:10.3]} 21. Kh2 {[%clk 0:00:17.3]} 21... Bxf1 {[%clk 0:00:09.3]} 22. Rxf1 {[%clk 0:00:15.4]} 22... Qh5+ {[%clk 0:00:09]} 23. Kg1 {[%clk 0:00:13.6]} 23... Qg6 {[%clk 0:00:08.3]} 24. Qd5+ {[%clk 0:00:12.2]} 24... Kh8 {[%clk 0:00:06.4]} 25. Re1 {[%clk 0:00:10.2]} 25... Qh5 {[%clk 0:00:04.1]} 26. Qg8+ {[%clk 0:00:08.8]} 26... Rxg8 {[%clk 0:00:02.8]} 27. Re7 {[%clk 0:00:07.6]} 27... Qh3 {[%clk 0:00:01.7]} 28. Rxg7 {[%clk 0:00:06.6]} 28... Qg2# {[%clk 0:00:01.4]} 0-1

[Event "Live Chess"]
[Site "Chess.com"]
[Date "2011.02.01"]
[Round "-"]
[White "harshal"]
[Black "hipposcottimus"]
[Result "0-1"]
[CurrentPosition "8/pppRQ1pk/8/8/5q1p/1P5P/P1P3PK/8 w - -"]
[Timezone "UTC"]
[ECO "C20"]
[ECOUrl "https://www.chess.com/openings/Kings-Pawn-Opening-Leonardis-Variation-2...Nf6-3.f4"]
[UTCDate "2011.02.01"]
[UTCTime "02:10:17"]
[WhiteElo "1646"]
[BlackElo "1649"]
[TimeControl "60"]
[Termination "hipposcottimus won on time"]
[StartTime "02:10:17"]
[EndDate "2011.02.01"]
[EndTime "02:12:31"]
[Link "https://www.chess.com/game/live/93493077"]

1. e4 {[%clk 0:01:00]} 1... e5 {[%clk 0:01:00]} 2. d3 {[%clk 0:00:58]} 2... Nf6 {[%clk 0:00:57.8]} 3. f4 {[%clk 0:00:57.9]} 3... d5 {[%clk 0:00:57]} 4. fxe5 {[%clk 0:00:57.8]} 4... Nfd7 {[%clk 0:00:55.2]} 5. exd5 {[%clk 0:00:57.1]} 5... Nxe5 {[%clk 0:00:54.3]} 6. Nf3 {[%clk 0:00:55.8]} 6... Ng6 {[%clk 0:00:53.5]} 7. Nc3 {[%clk 0:00:54.1]} 7... Bb4 {[%clk 0:00:51.9]} 8. Bg5 {[%clk 0:00:52.9]} 8... Qxd5 {[%clk 0:00:49.6]} 9. Bd2 {[%clk 0:00:49.7]} 9... Bxc3 {[%clk 0:00:47.8]} 10. Bxc3 {[%clk 0:00:49.1]} 10... O-O {[%clk 0:00:44.2]} 11. Be2 {[%clk 0:00:48.2]} 11... Re8 {[%clk 0:00:42.6]} 12. O-O {[%clk 0:00:46.9]} 12... Qc5+ {[%clk 0:00:42.2]} 13. Kh1 {[%clk 0:00:44.2]} 13... Qf5 {[%clk 0:00:40.9]} 14. d4 {[%clk 0:00:41.5]} 14... Qd7 {[%clk 0:00:40.5]} 15. Ne5 {[%clk 0:00:39]} 15... Nxe5 {[%clk 0:00:37.9]} 16. dxe5 {[%clk 0:00:38.1]} 16... Qe6 {[%clk 0:00:36.4]} 17. b3 {[%clk 0:00:30.1]} 17... Nc6 {[%clk 0:00:35.8]} 18. Bb2 {[%clk 0:00:29.2]} 18... Nxe5 {[%clk 0:00:34.9]} 19. Bc4 {[%clk 0:00:26.1]} 19... Qd6 {[%clk 0:00:31.3]} 20. Bxe5 {[%clk 0:00:25.1]} 20... Qxe5 {[%clk 0:00:29.1]} 21. Bxf7+ {[%clk 0:00:24.1]} 21... Kh8 {[%clk 0:00:28.5]} 22. Bxe8 {[%clk 0:00:23]} 22... Qxe8 {[%clk 0:00:28.2]} 23. Qe1 {[%clk 0:00:21.4]} 23... Qd8 {[%clk 0:00:26.6]} 24. Rd1 {[%clk 0:00:20.1]} 24... Bd7 {[%clk 0:00:25.6]} 25. Rd2 {[%clk 0:00:16.7]} 25... Qg5 {[%clk 0:00:20.8]} 26. Rxd7 {[%clk 0:00:13.8]} 26... Rg8 {[%clk 0:00:17.5]} 27. Qe7 {[%clk 0:00:11.5]} 27... h5 {[%clk 0:00:16.5]} 28. h3 {[%clk 0:00:08.7]} 28... h4 {[%clk 0:00:15.5]} 29. Rf8 {[%clk 0:00:07.4]} 29... Qc1+ {[%clk 0:00:14.3]} 30. Kh2 {[%clk 0:00:05.3]} 30... Qh6 {[%clk 0:00:09.7]} 31. Rxg8+ {[%clk 0:00:05.2]} 31... Kxg8 {[%clk 0:00:08.3]} 32. Qe8+ {[%clk 0:00:04]} 32... Kh7 {[%clk 0:00:08]} 33. Qe7 {[%clk 0:00:03.2]} 33... Qf4+ {[%clk 0:00:06]} 34. Kh1 {[%clk 0:00:01.8]} 34... Qf1+ {[%clk 0:00:04.5]} 35. Kh2 {[%clk 0:00:00.1]} 35... Qf4+ {[%clk 0:00:04.2]} 0-1

[Event "Live Chess"]
[Site "Chess.com"]
[Date "2011.02.01"]
[Round "-"]
[White "hipposcottimus"]
[Black "harshal"]
[Result "0-1"]
[CurrentPosition "1k3r1r/pp6/3q3p/P1bp4/1Pp3p1/6P1/2PQ3P/R3RK2 w - -"]
[Timezone "UTC"]
[ECO "C41"]
[ECOUrl "https://www.chess.com/openings/Philidor-Defense-Philidor-Countergambit-4.dxe5-fxe4"]
[UTCDate "2011.02.01"]
[UTCTime "02:08:08"]
[WhiteElo "1641"]
[BlackElo "1654"]
[TimeControl "60"]
[Termination "harshal won on time"]
[StartTime "02:08:08"]
[EndDate "2011.02.01"]
[EndTime "02:10:11"]
[Link "https://www.chess.com/game/live/93492510"]

1. e4 {[%clk 0:01:00]} 1... e5 {[%clk 0:01:00]} 2. Nf3 {[%clk 0:00:59.6]} 2... d6 {[%clk 0:00:59.7]} 3. d4 {[%clk 0:00:58.2]} 3... f5 {[%clk 0:00:59.6]} 4. dxe5 {[%clk 0:00:57.4]} 4... fxe4 {[%clk 0:00:59.5]} 5. Nfd2 {[%clk 0:00:56.1]} 5... d5 {[%clk 0:00:58.6]} 6. f4 {[%clk 0:00:53.5]} 6... exf3 {[%clk 0:00:56.8]} 7. Nxf3 {[%clk 0:00:53]} 7... Qe7 {[%clk 0:00:56.2]} 8. Bf4 {[%clk 0:00:50.1]} 8... Nd7 {[%clk 0:00:55]} 9. Bb5 {[%clk 0:00:48.3]} 9... c6 {[%clk 0:00:53.3]} 10. Ba4 {[%clk 0:00:48]} 10... Ngf6 {[%clk 0:00:51.8]} 11. Bb3 {[%clk 0:00:46.5]} 11... Nh5 {[%clk 0:00:50.1]} 12. Qd2 {[%clk 0:00:43]} 12... Nxf4 {[%clk 0:00:48.9]} 13. Qxf4 {[%clk 0:00:42.3]} 13... g5 {[%clk 0:00:47.8]} 14. Qg3 {[%clk 0:00:37.2]} 14... h6 {[%clk 0:00:45.8]} 15. O-O {[%clk 0:00:36.5]} 15... Bg7 {[%clk 0:00:44.8]} 16. Re1 {[%clk 0:00:34.6]} 16... Nb6 {[%clk 0:00:37.4]} 17. Nc3 {[%clk 0:00:34.1]} 17... Be6 {[%clk 0:00:36.1]} 18. Rad1 {[%clk 0:00:31.6]} 18... O-O-O {[%clk 0:00:34.8]} 19. a4 {[%clk 0:00:28.8]} 19... Nc4 {[%clk 0:00:30.7]} 20. Bxc4 {[%clk 0:00:26.6]} 20... dxc4 {[%clk 0:00:30.6]} 21. Ra1 {[%clk 0:00:25.7]} 21... Kb8 {[%clk 0:00:28.4]} 22. Qf2 {[%clk 0:00:23.8]} 22... g4 {[%clk 0:00:24.3]} 23. Nd4 {[%clk 0:00:20.1]} 23... Bd5 {[%clk 0:00:19.7]} 24. Qd2 {[%clk 0:00:19.4]} 24... Bxe5 {[%clk 0:00:18.2]} 25. Nxd5 {[%clk 0:00:13.8]} 25... cxd5 {[%clk 0:00:16.4]} 26. a5 {[%clk 0:00:11.1]} 26... Qd6 {[%clk 0:00:13.9]} 27. g3 {[%clk 0:00:07.2]} 27... Bxd4+ {[%clk 0:00:12.6]} 28. Kf1 {[%clk 0:00:05.4]} 28... Bc5 {[%clk 0:00:08.9]} 29. b4 {[%clk 0:00:03.1]} 29... Rdf8+ {[%clk 0:00:08.8]} 0-1

[Event "Live Chess"]
[Site "Chess.com"]
[Date "2011.02.01"]
[Round "-"]
[White "harshal"]
[Black "hipposcottimus"]
[Result "0-1"]
[CurrentPosition "3k4/p5pp/2p4b/1p6/1P4KP/2P5/5r2/8 w - -"]
[Timezone "UTC"]
[ECO "C20"]
[ECOUrl "https://www.chess.com/openings/Kings-Pawn-Opening-Leonardis-Variation-2...d5"]
[UTCDate "2011.02.01"]
[UTCTime "02:05:41"]
[WhiteElo "1646"]
[BlackElo "1649"]
[TimeControl "60"]
[Termination "hipposcottimus won on time"]
[StartTime "02:05:41"]
[EndDate "2011.02.01"]
[EndTime "02:07:40"]
[Link "https://www.chess.com/game/live/93491961"]

1. e4 {[%clk 0:01:00]} 1... e5 {[%clk 0:01:00]} 2. d3 {[%clk 0:00:59.9]} 2... d5 {[%clk 0:00:59.3]} 3. f4 {[%clk 0:00:59.8]} 3... dxe4 {[%clk 0:00:58.1]} 4. fxe5 {[%clk 0:00:58.6]} 4... f6 {[%clk 0:00:55.3]} 5. exf6 {[%clk 0:00:57]} 5... Nxf6 {[%clk 0:00:54.1]} 6. dxe4 {[%clk 0:00:56]} 6... Qxd1+ {[%clk 0:00:52.8]} 7. Kxd1 {[%clk 0:00:55.5]} 7... Nxe4 {[%clk 0:00:51.6]} 8. Ke1 {[%clk 0:00:54.7]} 8... Nc6 {[%clk 0:00:49.1]} 9. Bd3 {[%clk 0:00:54.3]} 9... Bf5 {[%clk 0:00:48.5]} 10. Bxe4 {[%clk 0:00:52.9]} 10... Bxe4 {[%clk 0:00:48.3]} 11. Nf3 {[%clk 0:00:52.2]} 11... Bxf3 {[%clk 0:00:46.7]} 12. gxf3 {[%clk 0:00:52.1]} 12... Nd4 {[%clk 0:00:46.3]} 13. Kd1 {[%clk 0:00:49.2]} 13... Nxf3 {[%clk 0:00:44.9]} 14. Rf1 {[%clk 0:00:47.3]} 14... Ng5 {[%clk 0:00:44.6]} 15. Re1+ {[%clk 0:00:46.4]} 15... Be7 {[%clk 0:00:43.2]} 16. Bxg5 {[%clk 0:00:44.1]} 16... O-O-O+ {[%clk 0:00:42.6]} 17. Nd2 {[%clk 0:00:36.2]} 17... Bxg5 {[%clk 0:00:42.3]} 18. Re2 {[%clk 0:00:34.9]} 18... Rhe8 {[%clk 0:00:41.7]} 19. Rxe8 {[%clk 0:00:32.8]} 19... Rxe8 {[%clk 0:00:41.5]} 20. Nc4 {[%clk 0:00:31.2]} 20... Rd8+ {[%clk 0:00:41.2]} 21. Ke2 {[%clk 0:00:28.6]} 21... b5 {[%clk 0:00:40.9]} 22. Ne5 {[%clk 0:00:26.1]} 22... Re8 {[%clk 0:00:40.4]} 23. Kf3 {[%clk 0:00:22.8]} 23... Rxe5 {[%clk 0:00:39.9]} 24. Rd1 {[%clk 0:00:21.4]} 24... Bh6 {[%clk 0:00:35.5]} 25. Rd3 {[%clk 0:00:16.9]} 25... Rc5 {[%clk 0:00:35]} 26. c3 {[%clk 0:00:15.5]} 26... c6 {[%clk 0:00:33.8]} 27. b4 {[%clk 0:00:13.7]} 27... Rf5+ {[%clk 0:00:33.2]} 28. Ke4 {[%clk 0:00:11.6]} 28... Rf6 {[%clk 0:00:32.8]} 29. h4 {[%clk 0:00:09.8]} 29... Kc7 {[%clk 0:00:32.5]} 30. Rf3 {[%clk 0:00:07.7]} 30... Re6+ {[%clk 0:00:30.8]} 31. Kf5 {[%clk 0:00:05.6]} 31... Rf6+ {[%clk 0:00:30.1]} 32. Kg4 {[%clk 0:00:03.9]} 32... Rg6+ {[%clk 0:00:29.5]} 33. Kh3 {[%clk 0:00:02.3]} 33... Rd6 {[%clk 0:00:29]} 34. Rf7+ {[%clk 0:00:01.4]} 34... Kb8 {[%clk 0:00:28.7]} 35. Rf3 {[%clk 0:00:00.5]} 35... Rd2 {[%clk 0:00:27.2]} 36. Kg4 {[%clk 0:00:00.4]} 36... Rxa2 {[%clk 0:00:26.1]} 37. Rf8+ {[%clk 0:00:00.3]} 37... Kc7 {[%clk 0:00:24.5]} 38. Rf7+ {[%clk 0:00:00.2]} 38... Kd8 {[%clk 0:00:23.5]} 39. Rf2 {[%clk 0:00:00.1]} 39... Rxf2 {[%clk 0:00:21.2]} 0-1

[Event "Live Chess"]
[Site "Chess.com"]
[Date "2011.02.01"]
[Round "-"]
[White "hipposcottimus"]
[Black "harshal"]
[Result "0-1"]
[CurrentPosition "r2q1r1k/p1p3pp/b4n2/2R5/8/1NNn1P2/PP4PP/3RQ2K w - -"]
[Timezone "UTC"]
[ECO "C41"]
[ECOUrl "https://www.chess.com/openings/Philidor-Defense-Lopez-Countergambit-4.d4"]
[UTCDate "2011.02.01"]
[UTCTime "02:03:23"]
[WhiteElo "1641"]
[BlackElo "1654"]
[TimeControl "60"]
[Termination "harshal won on time"]
[StartTime "02:03:23"]
[EndDate "2011.02.01"]
[EndTime "02:05:23"]
[Link "https://www.chess.com/game/live/93491410"]

1. e4 {[%clk 0:01:00]} 1... e5 {[%clk 0:01:00]} 2. Nf3 {[%clk 0:00:59.6]} 2... d6 {[%clk 0:00:59.9]} 3. Bc4 {[%clk 0:00:59.2]} 3... f5 {[%clk 0:00:59.6]} 4. d4 {[%clk 0:00:58.4]} 4... Nf6 {[%clk 0:00:59.2]} 5. Bg5 {[%clk 0:00:55.8]} 5... fxe4 {[%clk 0:00:59.1]} 6. Nfd2 {[%clk 0:00:52]} 6... d5 {[%clk 0:00:54.5]} 7. Bb3 {[%clk 0:00:42.8]} 7... exd4 {[%clk 0:00:53.3]} 8. O-O {[%clk 0:00:38.2]} 8... Be7 {[%clk 0:00:49.5]} 9. Re1 {[%clk 0:00:37.8]} 9... O-O {[%clk 0:00:48.4]} 10. f3 {[%clk 0:00:35.3]} 10... e3 {[%clk 0:00:47.1]} 11. Bxe3 {[%clk 0:00:34]} 11... dxe3 {[%clk 0:00:45.7]} 12. Rxe3 {[%clk 0:00:33.8]} 12... Kh8 {[%clk 0:00:40.5]} 13. Qe2 {[%clk 0:00:33.1]} 13... Bc5 {[%clk 0:00:37.8]} 14. Kh1 {[%clk 0:00:30.7]} 14... b6 {[%clk 0:00:37.1]} 15. Rc3 {[%clk 0:00:26.1]} 15... Ba6 {[%clk 0:00:34.6]} 16. Qe1 {[%clk 0:00:23.3]} 16... Bb4 {[%clk 0:00:32.2]} 17. Re3 {[%clk 0:00:20]} 17... Bc5 {[%clk 0:00:30.2]} 18. Rc3 {[%clk 0:00:17.5]} 18... Bb4 {[%clk 0:00:29.2]} 19. Re3 {[%clk 0:00:15.8]} 19... Bc5 {[%clk 0:00:28.5]} 20. Rc3 {[%clk 0:00:14.4]} 20... Nc6 {[%clk 0:00:28]} 21. Ba4 {[%clk 0:00:09.5]} 21... b5 {[%clk 0:00:24.1]} 22. Bxb5 {[%clk 0:00:07]} 22... Bxb5 {[%clk 0:00:22.6]} 23. Rxc5 {[%clk 0:00:06.6]} 23... Ne5 {[%clk 0:00:19.9]} 24. Nb3 {[%clk 0:00:06.3]} 24... d4 {[%clk 0:00:18.2]} 25. c3 {[%clk 0:00:03]} 25... dxc3 {[%clk 0:00:15.6]} 26. Nxc3 {[%clk 0:00:02.1]} 26... Ba6 {[%clk 0:00:14.1]} 27. Rd1 {[%clk 0:00:01.5]} 27... Nd3 {[%clk 0:00:12.2]} 0-1